[Event "33rd ECCC Open 2017"]
[Site "Antalya"]
[Date "2017.10.12"]
[Round "5"]
[White "Egan, Colm"]
[Black "Mahmuti, Ajet"]
[Result "0-1"]
[ECO "A45"]
[WhiteElo "1786"]
[BlackElo "1981"]
[Annotator "NA"]
[PlyCount "77"]
[EventType "team-tourn"]
[EventCountry "TUR"]
[SourceTitle "playchess.com"]
[Source "ChessBase"]
[SourceQuality "1"]
[WhiteTeam "Adare"]
[BlackTeam "Dardania"]
[TimeControl "40/5400+30:1800+30"]

1. d4 {[%emt 0:00:30]} Nf6 {[%emt 0:01:00]} 2. Bg5 {[%emt 0:00:30]} Ne4 {[%emt 0:00:30]} 3. Bf4 {[%emt 0:00:00]} d6 {[%emt 0:03:30]} 4. f3 {[%emt 0:00:00]} Nf6 {[%emt 0:00:30]} 5. e4 {[%emt 0:00:30]} g6 {[%emt 0:00:30]} 6. Qd2 {[%emt 0:01:30]} Nh5 {[%emt 0:04:30]} 7. Bh6 {[%emt 0:02:30]} Bxh6 {[%emt 0:08:30]} 8. Qxh6 {[%emt 0:00:30]} c5 {[%emt 0:00:30]} 9. dxc5 {[%emt 0:15:30]} Qa5+ {[%emt 0:04:30]} 10. Nd2 {[%emt 0:10:30]} Qxc5 {[%emt 0:01:30]} 11. Nb3 {[%emt 0:01:30]} Qb4+ {[%emt 0:02:30]} 12. c3 {[%emt 0:01:30]} Qb6 {[%emt 0:02:30]} 13. O-O-O {[%emt 0:07:30]} Be6 {[%emt 0:00:30]} 14. Bd3 {[%emt 0:04:30]} Bxb3 {[%emt 0:00:30]} 15. axb3 {[%emt 0:00:30]} Qxb3 {[%emt 0:00:30]} 16. Ne2 {[%emt 0:00:30]} Nc6 {[%emt 0:00:30]} 17. Bc2 {[%emt 0:00:30]} Qb6 {[%emt 0:06:30]} 18. g4 {[%emt 0:01:30]} Nf6 {[%emt 0:00:30]} 19. h4 {[%emt 0:00:30]} O-O-O {[%emt 0:00:30]} 20. Nd4 {[%emt 0:03:30]} Ne5 {[%emt 0:21:30]} 21. Bb3 {[%emt 0:04:30]} e6 {[%emt 0:00:30]} 22. Qg5 {[%emt 0:00:30]} Nfd7 {[%emt 0:01:30]} 23. Kc2 {[%emt 0:10:30]} Nc5 {[%emt 0:00:30]} 24. Rhf1 {[%emt 0:02:30]} Nxb3 {[%emt 0:02:30]} 25. Nxb3 {[%emt 0:00:30]} Kb8 {[%emt 0:01:30]} 26. Rd4 {[%emt 0:03:30]} Nc6 {[%emt 0:05:30]} 27. Rd2 {[%emt 0:04:30]} Rd7 {[%emt 0:07:30]} 28. Qf6 {[%emt 0:07:21]} Rc8 {[%emt 0:00:30]} 29. f4 {[%emt 0:04:22]} Qe3 {[%emt 0:06:08]} 30. Kc1 {[%emt 0:00:30]} b6 {[%emt 0:03:54]} 31. Rfd1 {[%emt 0:01:50]} a5 {[%emt 0:02:34]} 32. Nd4 {[%emt 0:00:35]} Qxe4 {[%emt 0:05:19]} 33. Re2 {[%emt 0:02:27]} Qd5 {[%emt 0:00:15]} 34. Nxe6 {[%emt 0:03:04]} Qc4 {[%emt 0:00:32]} 35. Nd4 {[%emt 0:05:12]} Nxd4 {[%emt 0:00:14]} 36. Qxd4 {[%emt 0:00:07]} Qxe2 {[%emt 0:01:08]} 37. Qxb6+ {[%emt 0:00:12]} Rb7 {[%emt 0:00:48]} 38. Qxd6+ {[%emt 0:00:45]} Ka8 {[%emt 0:00:14]} 39. Qd5 {[%emt 0:01:37]} 0-1

[Event "33rd ECCC Open 2017"]
[Site "Antalya"]
[Date "2017.10.12"]
[Round "5"]
[White "Aleksic, Filip"]
[Black "Ejsing, Esben"]
[Result "0-1"]
[ECO "A41"]
[WhiteElo "1654"]
[BlackElo "2180"]
[Annotator "NA"]
[PlyCount "88"]
[EventType "team-tourn"]
[EventCountry "TUR"]
[SourceTitle "playchess.com"]
[Source "ChessBase"]
[SourceQuality "1"]
[WhiteTeam "Elektroprivreda"]
[BlackTeam "Nordkalotten"]
[TimeControl "40/5400+30:1800+30"]

1. d4 {[%emt 0:00:30]} g6 {[%emt 0:01:00]} 2. g3 {[%emt 0:00:30]} Bg7 {[%emt 0:00:30]} 3. Bg2 {[%emt 0:00:30]} d6 {[%emt 0:00:30]} 4. Nf3 {[%emt 0:00:30]} Nd7 {[%emt 0:00:30]} 5. O-O {[%emt 0:01:30]} e5 {[%emt 0:00:30]} 6. dxe5 {[%emt 0:04:30]} dxe5 {[%emt 0:01:30]} 7. e4 {[%emt 0:03:30] A41: 1 d4 d6: Tartakower System and Modern Defence} Ne7 {[%emt 0:02:30]} (7... Ngf6 8. Qe2 O-O 9. b3 Re8 10. Rd1 h6 11. a4 a5 12. Ba3 b6 13. Qe3 Bb7 14. Nc3 Qb8 {1-0 (66) Petrosian,T (2625)-Guseinov,G (2646) Minsk 2015}) 8. Nc3 {[%emt 0:04:30]} O-O {[%emt 0:00:30]} 9. Qe2 {[%emt 0:03:30]} c6 {[%emt 0:02:30]} 10. Be3 {[%emt 0:01:30]} b5 $146 {[%emt 0:02:30]} ({Predecessor:} 10... Re8 11. Rfd1 Qc7 12. Qd2 Nf8 13. Bc5 Bg4 14. h3 Bxf3 15. Bxf3 {1-0 (41) Stumpf,W (1996)-Schurig,W (1976) Freudenstadt 2003}) 11. a3 {[%emt 0:02:30]} Qc7 {[%emt 0:02:30]} 12. Rad1 {[%emt 0:01:30]} a5 {[%emt 0:04:30]} 13. Ra1 {[%emt 0:12:30]} Ba6 {[%emt 0:20:30]} 14. Rfd1 {[%emt 0:14:30]} Rfd8 {[%emt 0:00:30]} 15. Qe1 {[%emt 0:02:30]} Nf8 {[%emt 0:13:30]} 16. Bf1 {[%emt 0:07:30]} Ne6 {[%emt 0:02:30]} 17. Rxd8+ {[%emt 0:01:30]} Nxd8 {[%emt 0:08:30]} 18. Rd1 {[%emt 0:06:30]} Ne6 {[%emt 0:00:30]} 19. Ng5 {[%emt 0:08:30]} Nd4 {[%emt 0:00:30]} 20. Bxd4 {[%emt 0:03:23]} exd4 $15 {[%emt 0:00:30]} 21. Ne2 {[%emt 0:00:51]} c5 {[%emt 0:05:30]} 22. c3 {[%emt 0:01:56]} Rd8 {[%emt 0:00:30]} 23. cxd4 {[%emt 0:02:14]} cxd4 {[%emt 0:00:30]} 24. Nf4 {[%emt 0:09:03]} h6 {[%emt 0:08:30]} 25. Nf3 {[%emt 0:00:13]} Qb6 {[%emt 0:02:10]} 26. Nd3 {[%emt 0:00:36]} Bc8 {[%emt 0:01:58]} 27. h3 {[%emt 0:00:47]} Be6 {[%emt 0:00:53]} 28. Kg2 {[%emt 0:00:45]} Kh7 {[%emt 0:01:00]} 29. Kh2 {[%emt 0:00:44]} g5 {[%emt 0:01:57]} 30. g4 {[%emt 0:00:30]} Ng6 {[%emt 0:00:34]} 31. Qd2 {[%emt 0:01:20]} Bc4 {[%emt 0:00:48]} 32. Be2 {[%emt 0:00:53]} Bf8 {[%emt 0:01:26]} 33. Ng1 {[%emt 0:01:48]} Bd6+ {[%emt 0:01:11]} 34. Kh1 {[%emt 0:00:19]} Bc7 {[%emt 0:00:26]} 35. Bf1 {[%emt 0:00:49]} Qd6 {[%emt 0:01:12]} 36. f3 {[%emt 0:00:09]} Kg7 {[%emt 0:02:53]} 37. Rc1 {[%emt 0:00:52]} Rh8 {[%emt 0:03:13]} 38. Rd1 {[%emt 0:01:51]} h5 {[%emt 0:00:54]} 39. Qf2 {[%emt 0:00:38]} hxg4 {[%emt 0:01:15]} 40. fxg4 {[%emt 0:00:00]} Re8 {[%emt 0:03:10]} 41. Nf3 {[%emt 0:10:19]} Rxe4 {[%emt 0:01:30]} 42. Nxg5 {[%emt 0:00:30]} Re3 {[%emt 0:00:30]} 43. Nc1 {[%emt 0:04:14]} Bd5+ {[%emt 0:01:30]} 44. Kg1 {[%emt 0:00:27]} Rg3+ {[%emt 0:00:30]} 0-1

[Event "33rd ECCC Open 2017"]
[Site "Antalya"]
[Date "2017.10.12"]
[Round "5"]
[White "Cirdi, Dalya"]
[Black "Lokasto, Mariusz"]
[Result "0-1"]
[ECO "D31"]
[WhiteElo "1093"]
[BlackElo "1857"]
[Annotator "NA RC"]
[PlyCount "220"]
[EventType "team-tourn"]
[EventCountry "TUR"]
[SourceTitle "playchess.com"]
[Source "ChessBase"]
[SourceQuality "1"]
[WhiteTeam "Hatay"]
[BlackTeam "Benildus"]
[TimeControl "40/5400+30:1800+30"]

1. d4 {[%emt 0:00:30]} d5 {[%emt 0:01:00]} 2. c4 {[%emt 0:00:30]} c6 {[%emt 0:00:30]} 3. e3 {[%emt 0:00:30]} Nf6 {[%emt 0:00:30]} 4. Nc3 {[%emt 0:00:30]} e6 {[%emt 0:00:30]} 5. a3 {[%emt 0:00:00]} Nbd7 {[%emt 0:01:30]} 6. Bd3 {[%emt 0:03:00] D31: Queen's Gambit Declined: Semi-Slav without ...Nf6 (+ Marshall Gambit and Noteboom) and Exchange Variation lines without ...Nf6} (6. Bd2 Be7 7. Qc2 O-O 8. Nf3 b6 9. Be2 Bb7 10. O-O dxc4 11. Bxc4 Rc8 12. Rfd1 c5 13. Be2 Qc7 {½-½ (62) Stocek,J (2544)-Van Wely,L (2684) Sydney 2013}) 6... dxc4 {[%emt 0:00:30]} 7. Bxc4 {[%emt 0:00:30]} b5 {[%emt 0:00:00]} 8. Bd3 {[%emt 0:00:30]} a6 {[%emt 0:00:00]} 9. Nge2 {[%emt 0:02:30]} Bb7 {[%emt 0:00:30]} 10. O-O {[%emt 0:01:30]} c5 {[%emt 0:01:30]} 11. dxc5 $146 {[%emt 0:06:30]} ({Predecessor:} 11. Nxb5 axb5 12. Bxb5 Qc7 13. Qd3 Bd6 {0-1 (53) Engel,M-Buechle,R (2015) Germany 2003}) 11... Nxc5 {[%emt 0:04:30]} 12. Bc2 {[%emt 0:01:30]} Qb6 {[%emt 0:03:30]} 13. b4 {[%emt 0:04:30]} Qc6 {[%emt 0:13:30]} 14. f3 {[%emt 0:06:30]} Ncd7 $1 {[%emt 0:04:30]} 15. e4 {[%emt 0:05:30]} Be7 {[%emt 0:05:30]} 16. Be3 {[%emt 0:08:30]} O-O {[%emt 0:02:30]} 17. Rc1 {[%emt 0:13:30]} Ne5 {[%emt 0:03:30]} 18. Bb3 {[%emt 0:06:30]} Qe8 {[%emt 0:11:30]} 19. Qc2 {[%emt 0:06:30]} Rc8 {[%emt 0:01:30]} 20. Rfd1 {[%emt 0:01:30]} a5 {[%emt 0:07:30]} 21. bxa5 {[%emt 0:04:30]} Bxa3 {[%emt 0:00:30]} 22. Ra1 {[%emt 0:03:30]} b4 {[%emt 0:13:30]} 23. Ba4 {[%emt 0:02:30]} Qe7 {[%emt 0:02:30]} 24. Qb3 {[%emt 0:01:25]} Nc4 {[%emt 0:01:30]} 25. Nb5 {[%emt 0:06:57]} Nxa5 {[%emt 0:08:24]} 26. Qa2 {[%emt 0:00:24]} Nc4 {[%emt 0:00:13]} 27. Bf2 {[%emt 0:01:22]} Nb2 {[%emt 0:01:20]} 28. Rdb1 {[%emt 0:01:46]} Nxa4 {[%emt 0:01:57]} 29. Nxa3 {[%emt 0:00:45]} bxa3 {[%emt 0:00:30]} 30. Qxa3 {[%emt 0:00:00]} Qxa3 {[%emt 0:02:27]} 31. Rxa3 {[%emt 0:00:01]} Ba6 {[%emt 0:01:49]} 32. Ng3 {[%emt 0:00:49]} Nc3 {[%emt 0:00:56]} 33. Re1 {[%emt 0:04:56]} Rc6 {[%emt 0:02:37]} 34. h3 {[%emt 0:01:34]} Rfc8 {[%emt 0:00:28]} 35. Raa1 {[%emt 0:00:36]} Bb5 {[%emt 0:02:28]} 36. Be3 {[%emt 0:01:27]} h6 {[%emt 0:00:22]} 37. Kh2 {[%emt 0:00:31]} Na4 {[%emt 0:01:22]} 38. Ne2 {[%emt 0:01:43]} Bxe2 {[%emt 0:00:37]} 39. Rxe2 {[%emt 0:01:21]} Nb6 {[%emt 0:00:49]} 40. Rb1 {[%emt 0:00:00]} Na4 {[%emt 0:00:41]} 41. Rbe1 {[%emt 0:02:23]} Rc2 {[%emt 0:03:30]} 42. Kg1 {[%emt 0:00:30]} Rxe2 {[%emt 0:00:30]} 43. Rxe2 {[%emt 0:00:30]} Kf8 {[%emt 0:02:30]} 44. Kf2 {[%emt 0:00:30]} Nc3 {[%emt 0:01:30]} 45. Re1 {[%emt 0:00:30]} Na2 {[%emt 0:02:30]} 46. Kg3 {[%emt 0:00:30]} Nd7 {[%emt 0:01:30]} 47. Rd1 {[%emt 0:00:30]} Ke7 {[%emt 0:00:30]} 48. Rd2 {[%emt 0:00:30]} Nc3 {[%emt 0:01:30]} 49. Kh2 {[%emt 0:00:30]} Nb5 {[%emt 0:01:30]} 50. Rb2 {[%emt 0:01:30]} Nd6 {[%emt 0:00:00]} 51. Rd2 {[%emt 0:00:30]} Rc6 {[%emt 0:01:00]} 52. Bg1 {[%emt 0:01:30]} f6 {[%emt 0:01:22]} 53. Kg3 {[%emt 0:00:30]} e5 {[%emt 0:00:33]} 54. Re2 {[%emt 0:00:30]} Rc3 {[%emt 0:00:33]} 55. Kh2 {[%emt 0:00:30]} Ke6 {[%emt 0:00:32]} 56. Rf2 {[%emt 0:01:30]} h5 {[%emt 0:01:05]} 57. h4 {[%emt 0:00:30]} Nf8 {[%emt 0:00:28]} 58. g3 {[%emt 0:01:30]} Ng6 {[%emt 0:02:38]} 59. Kh3 {[%emt 0:01:30]} Ne7 {[%emt 0:01:41]} 60. Bh2 {[%emt 0:00:30]} Nc6 {[%emt 0:00:25]} 61. Kg2 {[%emt 0:00:30]} Nd4 {[%emt 0:00:09]} 62. Bg1 {[%emt 0:00:30]} Rc2 {[%emt 0:00:23]} 63. Rxc2 {[%emt 0:00:30]} Nxc2 {[%emt 0:00:30]} 64. Kf1 {[%emt 0:00:30]} Nd4 {[%emt 0:00:09]} 65. Kg2 {[%emt 0:00:30]} Nc4 {[%emt 0:00:16]} 66. Kf2 {[%emt 0:00:30]} Nd2 {[%emt 0:00:55]} 67. Ke3 {[%emt 0:00:30]} N2xf3 {[%emt 0:02:17]} 68. Bf2 {[%emt 0:00:30]} Nh2 {[%emt 0:00:16]} 69. Kd3 {[%emt 0:01:30]} Ng4 {[%emt 0:01:50]} 70. Be1 {[%emt 0:01:30]} Kd6 {[%emt 0:01:19]} 71. Bb4+ {[%emt 0:00:30]} Kc6 {[%emt 0:00:00]} 72. Kc4 {[%emt 0:00:30]} g6 {[%emt 0:01:08]} 73. Kd3 {[%emt 0:01:30]} Nf2+ {[%emt 0:01:26]} 74. Ke3 {[%emt 0:01:30]} Nc2+ {[%emt 0:00:27]} 75. Kxf2 {[%emt 0:00:30]} Nxb4 {[%emt 0:00:30]} 76. Ke3 {[%emt 0:00:30]} Nc2+ {[%emt 0:00:22]} 77. Kd3 {[%emt 0:00:30]} Nd4 {[%emt 0:00:10]} 78. Kd2 {[%emt 0:00:30]} Kc5 {[%emt 0:00:39]} 79. Kd3 {[%emt 0:00:00]} Kb4 {[%emt 0:00:27]} 80. Kd2 {[%emt 0:00:00]} Kb3 {[%emt 0:00:00]} 81. Kd3 {[%emt 0:00:30]} Ne6 {[%emt 0:00:11]} 82. Ke3 {[%emt 0:00:30]} Kc3 {[%emt 0:00:16]} 83. Ke2 {[%emt 0:00:30]} Kd4 {[%emt 0:00:30]} 84. Kf3 {[%emt 0:00:30]} Kd3 {[%emt 0:00:22]} 85. Kf2 {[%emt 0:00:00]} Kxe4 {[%emt 0:00:14]} 86. Ke2 {[%emt 0:00:00]} f5 {[%emt 0:00:00]} 87. Kf2 {[%emt 0:00:30]} Nd4 {[%emt 0:00:00]} 88. Kg2 {[%emt 0:00:30]} Ke3 {[%emt 0:00:07]} 89. Kg1 {[%emt 0:01:30]} Kf3 {[%emt 0:00:24]} 90. Kf1 {[%emt 0:00:00]} Kxg3 {[%emt 0:00:48]} 91. Kg1 {[%emt 0:00:00]} Nf3+ {[%emt 0:00:00]} 92. Kf1 {[%emt 0:00:30]} Nxh4 {[%emt 0:00:28]} 93. Ke2 {[%emt 0:00:30]} e4 {[%emt 0:00:28]} 94. Ke3 {[%emt 0:00:00]} g5 {[%emt 0:01:45]} 95. Ke2 {[%emt 0:00:00]} f4 {[%emt 0:00:14]} 96. Kd2 {[%emt 0:00:30]} Kf2 {[%emt 0:00:05]} 97. Kd1 {[%emt 0:00:30]} e3 {[%emt 0:00:30]} 98. Kc2 {[%emt 0:00:00]} e2 {[%emt 0:00:12]} 99. Kd3 {[%emt 0:00:00]} e1=Q {[%emt 0:00:16]} 100. Kc4 {[%emt 0:00:30]} Qd2 {[%emt 0:00:00]} 101. Kc5 {[%emt 0:00:30]} Qd3 {[%emt 0:00:26]} 102. Kb4 {[%emt 0:00:00]} Qc2 {[%emt 0:00:11]} 103. Kb5 {[%emt 0:00:00]} Qc3 {[%emt 0:00:00]} 104. Kb6 {[%emt 0:00:30]} Qc4 {[%emt 0:00:17]} 105. Kb7 {[%emt 0:00:00]} Qc5 {[%emt 0:00:00]} 106. Kb8 {[%emt 0:00:00]} Qe7 {[%emt 0:00:02]} 107. Kc8 {[%emt 0:00:30]} Nf5 {[%emt 0:00:17]} 108. Kb8 {[%emt 0:00:00]} Qd7 {[%emt 0:00:48]} 109. Ka8 {[%emt 0:00:00]} Nd6 {[%emt 0:00:16]} 110. Kb8 {[%emt 0:00:30]} Qb7# {[%emt 0:00:00]} 0-1